[Event "*** Titled Tuesday Blitz"]
[Site "Chess.com"]
[Date "2019.01.01"]
[Round "6"]
[White "northridgehawk"]
[Black "Blagorod"]
[Result "1-0"]
[WhiteElo "2248"]
[BlackElo "2094"]
[TimeControl "180+2"]
[EndTime "14:24:31 PST"]
[Termination "northridgehawk won on time"]

1. e4 {[%clk 0:03:01.9]} 1... e5 {[%clk 0:03:00.6]} 2. Nf3 {[%clk 0:03:02.1]}
2... Nf6 {[%clk 0:03:01.3]} 3. Nxe5 {[%clk 0:02:57.7]} 3... d6 {[%clk 0:03:02]}
4. Nf3 {[%clk 0:02:58.7]} 4... Nxe4 {[%clk 0:03:03]} 5. Nc3 {[%clk 0:02:59.6]}
5... Nxc3 {[%clk 0:03:03.8]} 6. dxc3 {[%clk 0:03:01]} 6... Be7 {[%clk
0:03:05.3]} 7. Be3 {[%clk 0:03:01.7]} 7... Be6 {[%clk 0:03:03.1]} 8. Qd2 {[%clk
0:03:02.9]} 8... Nc6 {[%clk 0:02:56.9]} 9. O-O-O {[%clk 0:03:01]} 9... Qd7
{[%clk 0:02:58.2]} 10. Kb1 {[%clk 0:03:01.1]} 10... O-O-O {[%clk 0:02:58.7]} 11.
h4 {[%clk 0:03:01.2]} 11... h6 {[%clk 0:02:55.3]} 12. Bb5 {[%clk 0:02:58.8]}
12... a6 {[%clk 0:02:35]} 13. Be2 {[%clk 0:02:55.1]} 13... Bf6 {[%clk
0:02:30.8]} 14. Nd4 {[%clk 0:02:55.3]} 14... Nxd4 {[%clk 0:02:25.8]} 15. cxd4
{[%clk 0:02:54.9]} 15... Qa4 {[%clk 0:02:23.3]} 16. b3 {[%clk 0:02:52.9]} 16...
Qa3 {[%clk 0:02:08.6]} 17. Qc3 {[%clk 0:02:47.1]} 17... d5 {[%clk 0:01:56.9]}
18. Bf4 {[%clk 0:02:42.9]} 18... Qe7 {[%clk 0:01:51.7]} 19. Bf3 {[%clk
0:02:43.3]} 19... Rd7 {[%clk 0:01:37.9]} 20. g3 {[%clk 0:02:43.6]} 20... Rdd8
{[%clk 0:01:26.8]} 21. Rhe1 {[%clk 0:02:44.5]} 21... Qd7 {[%clk 0:01:16]} 22.
Qc5 {[%clk 0:02:40.5]} 22... Kb8 {[%clk 0:01:12.3]} 23. Re3 {[%clk 0:02:23]}
23... Be7 {[%clk 0:01:09.4]} 24. Qa5 {[%clk 0:02:22.8]} 24... Bd6 {[%clk
0:01:06.6]} 25. Be5 {[%clk 0:02:15.2]} 25... f6 {[%clk 0:00:49.4]} 26. Bxd6
{[%clk 0:02:15.8]} 26... Qxd6 {[%clk 0:00:49.8]} 27. Rde1 {[%clk 0:02:15.6]}
27... Rhe8 {[%clk 0:00:21.7]} 28. R1e2 {[%clk 0:02:15.7]} 28... c6 {[%clk
0:00:15.6]} 29. Qe1 {[%clk 0:02:14.4]} 29... Kc7 {[%clk 0:00:10.3]} 30. Rxe6
{[%clk 0:02:06.7]} 30... Rxe6 {[%clk 0:00:10]} 31. Rxe6 {[%clk 0:02:07.6]} 31...
Qa3 {[%clk 0:00:10.2]} 32. Re7+ {[%clk 0:02:05.7]} 32... Kb8 {[%clk 0:00:11.3]}
33. Bg4 {[%clk 0:02:03.2]} 33... c5 {[%clk 0:00:10.5]} 34. Re8 {[%clk
0:01:57.1]} 34... Rxe8 {[%clk 0:00:09.3]} 35. Qxe8+ {[%clk 0:01:58]} 35... Ka7
{[%clk 0:00:11]} 36. Qe7 {[%clk 0:01:55.8]} 1-0

[Event "*** Titled Tuesday Blitz"]
[Site "Chess.com"]
[Date "2019.01.01"]
[Round "6"]
[White "Blitzstream"]
[Black "Slovak_fighter2000"]
[Result "1-0"]
[WhiteElo "2551"]
[BlackElo "2440"]
[TimeControl "180+2"]
[EndTime "14:24:51 PST"]
[Termination "Blitzstream won by checkmate"]

1. e4 {[%clk 0:03:01.9]} 1... e6 {[%clk 0:03:00.8]} 2. d4 {[%clk 0:03:01.9]}
2... d5 {[%clk 0:03:02]} 3. Nd2 {[%clk 0:03:03.1]} 3... a6 {[%clk 0:03:02.8]} 4.
Ngf3 {[%clk 0:03:03.8]} 4... c5 {[%clk 0:03:02.5]} 5. c3 {[%clk 0:03:03.2]} 5...
Nc6 {[%clk 0:03:00.9]} 6. e5 {[%clk 0:03:02.7]} 6... Qb6 {[%clk 0:02:50]} 7. Nb3
{[%clk 0:02:56.7]} 7... cxd4 {[%clk 0:02:46.1]} 8. cxd4 {[%clk 0:02:47]} 8...
Bb4+ {[%clk 0:02:33]} 9. Bd2 {[%clk 0:02:47.4]} 9... Nge7 {[%clk 0:02:27.4]} 10.
Bxb4 {[%clk 0:02:39.7]} 10... Qxb4+ {[%clk 0:02:27.8]} 11. Qd2 {[%clk 0:02:41]}
11... Qb6 {[%clk 0:02:25.1]} 12. Bd3 {[%clk 0:02:36.6]} 12... Bd7 {[%clk
0:02:24.3]} 13. O-O {[%clk 0:02:36.3]} 13... O-O {[%clk 0:02:24.2]} 14. Rac1
{[%clk 0:02:36]} 14... Rac8 {[%clk 0:02:19.9]} 15. Nc5 {[%clk 0:02:34.4]} 15...
Nb8 {[%clk 0:02:20.1]} 16. Qg5 {[%clk 0:02:19.6]} 16... Ng6 {[%clk 0:02:14]} 17.
Qh5 {[%clk 0:01:54.8]} 17... Bb5 {[%clk 0:02:07.2]} 18. Ng5 {[%clk 0:01:41.5]}
18... h6 {[%clk 0:02:07.2]} 19. Ngxe6 {[%clk 0:01:27.7]} 19... Bxd3 {[%clk
0:01:53.3]} 20. Nxf8 {[%clk 0:01:28.2]} 20... Bxf1 {[%clk 0:01:51.4]} 21. Nxg6
{[%clk 0:01:13.4]} 21... fxg6 {[%clk 0:01:50.1]} 22. Qg4 {[%clk 0:00:59.6]}
22... Rf8 {[%clk 0:01:45]} 23. Rxf1 {[%clk 0:00:57.5]} 23... Qxb2 {[%clk
0:01:43.1]} 24. Qxg6 {[%clk 0:00:40.1]} 24... Nc6 {[%clk 0:01:27.1]} 25. Nd7
{[%clk 0:00:38]} 25... Rd8 {[%clk 0:01:19.7]} 26. Nf6+ {[%clk 0:00:34.6]} 26...
Kf8 {[%clk 0:01:20.5]} 27. Nh7+ {[%clk 0:00:27.7]} 27... Kg8 {[%clk 0:01:19.6]}
28. Nf6+ {[%clk 0:00:28.6]} 28... Kf8 {[%clk 0:01:20.3]} 29. e6 {[%clk
0:00:29.2]} 29... Ke7 {[%clk 0:01:08.8]} 30. Qxg7+ {[%clk 0:00:29]} 30... Kd6
{[%clk 0:01:04.2]} 31. Ne8+ {[%clk 0:00:26.7]} 31... Kxe6 {[%clk 0:00:59.4]} 32.
Re1+ {[%clk 0:00:26.3]} 32... Kf5 {[%clk 0:00:58.7]} 33. Qf6+ {[%clk 0:00:26.4]}
33... Kg4 {[%clk 0:00:58.4]} 34. h3+ {[%clk 0:00:27]} 34... Kh5 {[%clk
0:00:59.2]} 35. Ng7# {[%clk 0:00:28]} 1-0

[Event "*** Titled Tuesday Blitz"]
[Site "Chess.com"]
[Date "2019.01.01"]
[Round "6"]
[White "Alexander_Donchenko"]
[Black "Bigfish1995"]
[Result "0-1"]
[WhiteElo "2666"]
[BlackElo "2916"]
[TimeControl "180+2"]
[EndTime "14:25:02 PST"]
[Termination "Bigfish1995 won by resignation"]

1. f4 {[%clk 0:03:01.9]} 1... b5 {[%clk 0:02:58.7]} 2. e3 {[%clk 0:03:02]} 2...
a6 {[%clk 0:02:58.3]} 3. Be2 {[%clk 0:03:01.7]} 3... Bb7 {[%clk 0:02:51.1]} 4.
Bf3 {[%clk 0:03:02.8]} 4... d5 {[%clk 0:02:51.9]} 5. Ne2 {[%clk 0:03:01.8]} 5...
c5 {[%clk 0:02:48.8]} 6. O-O {[%clk 0:02:58.6]} 6... Nf6 {[%clk 0:02:48.3]} 7.
a4 {[%clk 0:02:58.4]} 7... Nbd7 {[%clk 0:02:46.6]} 8. b3 {[%clk 0:02:58.3]} 8...
e5 {[%clk 0:02:44.5]} 9. Ng3 {[%clk 0:02:37.1]} 9... Be7 {[%clk 0:02:29.9]} 10.
axb5 {[%clk 0:02:34.6]} 10... axb5 {[%clk 0:02:30.3]} 11. Rxa8 {[%clk
0:02:36.5]} 11... Bxa8 {[%clk 0:02:31.3]} 12. Bb2 {[%clk 0:02:33.9]} 12... exf4
{[%clk 0:02:25]} 13. exf4 {[%clk 0:02:27.7]} 13... O-O {[%clk 0:02:25.9]} 14.
Re1 {[%clk 0:02:21.5]} 14... Re8 {[%clk 0:02:26.7]} 15. Nc3 {[%clk 0:02:09.2]}
15... b4 {[%clk 0:02:21]} 16. Na4 {[%clk 0:02:05.4]} 16... Bf8 {[%clk 0:02:14]}
17. Rxe8 {[%clk 0:02:01.4]} 17... Qxe8 {[%clk 0:02:14.6]} 18. Qe2 {[%clk
0:02:02.3]} 18... Qb8 {[%clk 0:02:11.1]} 19. Be5 {[%clk 0:01:46.2]} 19... Qa7
{[%clk 0:02:03.3]} 20. Kh1 {[%clk 0:01:32.1]} 20... Bc6 {[%clk 0:01:59]} 21. Nb2
{[%clk 0:01:12.8]} 21... Nxe5 {[%clk 0:01:37.8]} 22. Qxe5 {[%clk 0:01:04.8]}
22... Qa1+ {[%clk 0:01:27.8]} 23. Nd1 {[%clk 0:01:05.5]} 23... Qc1 {[%clk
0:01:27.3]} 24. d3 {[%clk 0:00:58.6]} 24... Qxc2 {[%clk 0:01:25.5]} 25. Nf5
{[%clk 0:00:53]} 25... Qxd3 {[%clk 0:01:21.5]} 26. h3 {[%clk 0:00:52.4]} 26...
h5 {[%clk 0:01:12.3]} 27. Nde3 {[%clk 0:00:47.7]} 27... Bd7 {[%clk 0:01:08.4]}
28. Ne7+ {[%clk 0:00:23.1]} 28... Bxe7 {[%clk 0:01:05.2]} 29. Qxe7 {[%clk
0:00:25]} 29... Be6 {[%clk 0:01:01.7]} 30. f5 {[%clk 0:00:25]} 30... Qxe3 {[%clk
0:01:01.1]} 31. fxe6 {[%clk 0:00:25.4]} 31... fxe6 {[%clk 0:00:58.3]} 32. Bxh5
{[%clk 0:00:14.7]} 32... Qe1+ {[%clk 0:00:58.6]} 33. Kh2 {[%clk 0:00:15.8]}
33... Qe5+ {[%clk 0:00:59.8]} 34. Kh1 {[%clk 0:00:17.3]} 34... Nxh5 {[%clk
0:00:58.9]} 0-1

[Event "*** Titled Tuesday Blitz"]
[Site "Chess.com"]
[Date "2019.01.01"]
[Round "6"]
[White "matiss90"]
[Black "jacky72"]
[Result "0-1"]
[WhiteElo "2435"]
[BlackElo "2598"]
[TimeControl "180+2"]
[EndTime "14:25:03 PST"]
[Termination "jacky72 won by resignation"]

1. e4 {[%clk 0:03:01.9]} 1... c5 {[%clk 0:03:00.7]} 2. Nf3 {[%clk 0:03:02.9]}
2... Nc6 {[%clk 0:03:02.2]} 3. d4 {[%clk 0:03:04.1]} 3... cxd4 {[%clk
0:03:04.1]} 4. Nxd4 {[%clk 0:03:05.9]} 4... Nf6 {[%clk 0:03:05]} 5. Nc3 {[%clk
0:03:06.7]} 5... d6 {[%clk 0:03:06.5]} 6. Bc4 {[%clk 0:03:07.3]} 6... e6 {[%clk
0:03:07]} 7. Bb3 {[%clk 0:03:07.3]} 7... Be7 {[%clk 0:03:08.1]} 8. Be3 {[%clk
0:03:08.4]} 8... O-O {[%clk 0:03:08.7]} 9. Qe2 {[%clk 0:03:09.6]} 9... Bd7
{[%clk 0:03:09.5]} 10. O-O-O {[%clk 0:03:10.7]} 10... Na5 {[%clk 0:03:07.4]} 11.
g4 {[%clk 0:03:08]} 11... Nxb3+ {[%clk 0:03:07.2]} 12. Nxb3 {[%clk 0:02:48.8]}
12... Bc6 {[%clk 0:03:09.1]} 13. f3 {[%clk 0:02:49.4]} 13... a5 {[%clk
0:03:09.2]} 14. h4 {[%clk 0:02:45.9]} 14... a4 {[%clk 0:03:09.6]} 15. Nd4 {[%clk
0:02:47]} 15... a3 {[%clk 0:03:11.1]} 16. b3 {[%clk 0:02:48.1]} 16... Qa5 {[%clk
0:03:09.7]} 17. Bd2 {[%clk 0:02:30.1]} 17... Rfc8 {[%clk 0:03:01.1]} 18. Nd5
{[%clk 0:02:18.5]} 18... Qd8 {[%clk 0:03:02]} 19. Nxe7+ {[%clk 0:02:19]} 19...
Qxe7 {[%clk 0:03:03.9]} 20. h5 {[%clk 0:02:20.1]} 20... Nd7 {[%clk 0:03:04.1]}
21. h6 {[%clk 0:02:10]} 21... g6 {[%clk 0:03:02.9]} 22. Kb1 {[%clk 0:02:00.3]}
22... e5 {[%clk 0:02:56.3]} 23. Nxc6 {[%clk 0:01:15.2]} 23... Rxc6 {[%clk
0:02:55.1]} 24. Bb4 {[%clk 0:01:10.4]} 24... Nc5 {[%clk 0:02:55.9]} 25. Rd5
{[%clk 0:01:01.2]} 25... Ne6 {[%clk 0:02:53.3]} 26. Qd2 {[%clk 0:00:49.1]} 26...
Rac8 {[%clk 0:02:52]} 27. c4 {[%clk 0:00:46.4]} 27... Nd4 {[%clk 0:02:50.2]} 28.
Rxd4 {[%clk 0:00:46.4]} 28... exd4 {[%clk 0:02:49]} 29. Qxd4 {[%clk 0:00:47.4]}
29... Qe5 {[%clk 0:02:50.9]} 30. Qd2 {[%clk 0:00:42]} 30... b5 {[%clk
0:02:45.3]} 31. Bc3 {[%clk 0:00:42.4]} 31... Qc5 {[%clk 0:02:46.7]} 32. Rc1
{[%clk 0:00:28.7]} 32... bxc4 {[%clk 0:02:45.6]} 33. b4 {[%clk 0:00:29.7]} 33...
Rb8 {[%clk 0:02:40.9]} 34. Ka1 {[%clk 0:00:24.3]} 34... Qa7 {[%clk 0:02:39.4]}
35. Qg5 {[%clk 0:00:21.6]} 35... Kf8 {[%clk 0:02:20.2]} 36. Qf6 {[%clk
0:00:16.7]} 36... Qf2 {[%clk 0:02:21.6]} 37. Qh8+ {[%clk 0:00:10.6]} 37... Ke7
{[%clk 0:02:23.1]} 38. Bf6+ {[%clk 0:00:08.8]} 38... Ke6 {[%clk 0:02:21.7]} 39.
Qxb8 {[%clk 0:00:07.7]} 39... Kxf6 {[%clk 0:02:23]} 40. Qd8+ {[%clk 0:00:07.4]}
40... Ke5 {[%clk 0:02:19.9]} 41. Qg5+ {[%clk 0:00:05.1]} 41... f5 {[%clk
0:02:20.6]} 42. Qe7+ {[%clk 0:00:04.5]} 42... Kf4 {[%clk 0:02:20.7]} 43. Qf6
{[%clk 0:00:04]} 43... d5 {[%clk 0:02:21]} 44. Qc3 {[%clk 0:00:04]} 44... d4
{[%clk 0:02:21.4]} 45. Qc2 {[%clk 0:00:03.9]} 45... Qxc2 {[%clk 0:02:20.4]} 46.
Rxc2 {[%clk 0:00:05.8]} 46... d3 {[%clk 0:02:22.3]} 47. Rc1 {[%clk 0:00:04.8]}
47... d2 {[%clk 0:02:23.5]} 48. Rd1 {[%clk 0:00:05.3]} 48... c3 {[%clk
0:02:24.9]} 49. b5 {[%clk 0:00:06.6]} 49... c2 {[%clk 0:02:26.3]} 0-1

[Event "*** Titled Tuesday Blitz"]
[Site "Chess.com"]
[Date "2019.01.01"]
[Round "6"]
[White "olksuna"]
[Black "essequamvideris"]
[Result "0-1"]
[WhiteElo "2490"]
[BlackElo "2409"]
[TimeControl "180+2"]
[EndTime "14:25:15 PST"]
[Termination "essequamvideris won on time"]

1. c4 {[%clk 0:02:59.3]} 1... Nf6 {[%clk 0:03:00.5]} 2. Nf3 {[%clk 0:02:58.4]}
2... g6 {[%clk 0:03:00.5]} 3. g3 {[%clk 0:02:59.3]} 3... Bg7 {[%clk 0:03:01.1]}
4. Bg2 {[%clk 0:03:01.2]} 4... O-O {[%clk 0:03:02.1]} 5. O-O {[%clk 0:03:02.6]}
5... c5 {[%clk 0:03:04]} 6. Nc3 {[%clk 0:03:03.5]} 6... Nc6 {[%clk 0:03:04.7]}
7. d4 {[%clk 0:03:05]} 7... cxd4 {[%clk 0:03:05.4]} 8. Nxd4 {[%clk 0:03:06.5]}
8... Nxd4 {[%clk 0:03:07.3]} 9. Qxd4 {[%clk 0:03:06.8]} 9... d6 {[%clk
0:03:09.2]} 10. e4 {[%clk 0:03:07.2]} 10... Be6 {[%clk 0:03:09.6]} 11. Qd3
{[%clk 0:03:06.9]} 11... Rc8 {[%clk 0:03:06.6]} 12. b3 {[%clk 0:03:06.8]} 12...
Qa5 {[%clk 0:03:05.6]} 13. Bb2 {[%clk 0:03:03.3]} 13... Qh5 {[%clk 0:03:07.1]}
14. f3 {[%clk 0:02:59.7]} 14... Nd7 {[%clk 0:02:30.2]} 15. Rad1 {[%clk
0:02:51.3]} 15... Qc5+ {[%clk 0:02:21.2]} 16. Kh1 {[%clk 0:02:50.6]} 16... Ne5
{[%clk 0:02:23.1]} 17. Qe2 {[%clk 0:02:47.5]} 17... Nxc4 {[%clk 0:02:18.6]} 18.
Ba1 {[%clk 0:02:02.1]} 18... Nb6 {[%clk 0:02:04.6]} 19. Nd5 {[%clk 0:01:54.4]}
19... Bxd5 {[%clk 0:01:59.4]} 20. Bxg7 {[%clk 0:01:54.9]} 20... Kxg7 {[%clk
0:01:57.6]} 21. exd5 {[%clk 0:01:54.3]} 21... Nxd5 {[%clk 0:01:56.9]} 22. Rde1
{[%clk 0:01:37.6]} 22... e6 {[%clk 0:01:53.9]} 23. f4 {[%clk 0:01:38.1]} 23...
Nc3 {[%clk 0:01:52.2]} 24. Qd2 {[%clk 0:01:35.2]} 24... d5 {[%clk 0:01:49.3]}
25. g4 {[%clk 0:01:35.5]} 25... Rfe8 {[%clk 0:01:47.6]} 26. f5 {[%clk
0:01:32.1]} 26... exf5 {[%clk 0:01:46.3]} 27. Rxe8 {[%clk 0:01:31.3]} 27... Rxe8
{[%clk 0:01:45.5]} 28. gxf5 {[%clk 0:01:32.9]} 28... f6 {[%clk 0:01:43.1]} 29.
Rc1 {[%clk 0:01:23.1]} 29... d4 {[%clk 0:01:41.2]} 30. fxg6 {[%clk 0:01:22.6]}
30... hxg6 {[%clk 0:01:39.4]} 31. Bxb7 {[%clk 0:01:23.3]} 31... g5 {[%clk
0:01:36.1]} 32. Bg2 {[%clk 0:01:20.4]} 32... Re3 {[%clk 0:01:33.7]} 33. Rf1
{[%clk 0:00:58.9]} 33... Qe5 {[%clk 0:01:33.4]} 34. Rc1 {[%clk 0:00:32.3]} 34...
d3 {[%clk 0:01:26.3]} 35. h3 {[%clk 0:00:11.3]} 35... Ne2 {[%clk 0:01:22]} 36.
Rc7+ {[%clk 0:00:06.6]} 36... Kh6 {[%clk 0:01:20.9]} 37. Rc6 {[%clk 0:00:06.9]}
37... Ng3+ {[%clk 0:01:18.7]} 38. Kg1 {[%clk 0:00:08]} 38... Re1+ {[%clk
0:01:17.6]} 0-1

[Event "*** Titled Tuesday Blitz"]
[Site "Chess.com"]
[Date "2019.01.01"]
[Round "6"]
[White "MasterKroket"]
[Black "SanchezKelvin"]
[Result "0-1"]
[WhiteElo "2449"]
[BlackElo "2539"]
[TimeControl "180+2"]
[EndTime "14:25:20 PST"]
[Termination "SanchezKelvin won by resignation"]

1. d4 {[%clk 0:03:01.9]} 1... Nf6 {[%clk 0:03:00.4]} 2. c4 {[%clk 0:03:03.4]}
2... g6 {[%clk 0:03:00.2]} 3. Nc3 {[%clk 0:03:03.9]} 3... Bg7 {[%clk 0:03:01.3]}
4. e4 {[%clk 0:03:05.2]} 4... d6 {[%clk 0:03:03]} 5. Nf3 {[%clk 0:03:06.6]} 5...
O-O {[%clk 0:03:03.8]} 6. Be2 {[%clk 0:03:08.3]} 6... Bg4 {[%clk 0:03:03.6]} 7.
O-O {[%clk 0:03:08.4]} 7... c5 {[%clk 0:03:04.2]} 8. d5 {[%clk 0:03:09.3]} 8...
e6 {[%clk 0:03:05.1]} 9. Bg5 {[%clk 0:03:01.9]} 9... h6 {[%clk 0:03:04.6]} 10.
Bh4 {[%clk 0:03:02.9]} 10... exd5 {[%clk 0:03:05.3]} 11. cxd5 {[%clk 0:02:51.8]}
11... a6 {[%clk 0:03:03.6]} 12. a4 {[%clk 0:02:52.1]} 12... Nbd7 {[%clk
0:03:02.7]} 13. Nd2 {[%clk 0:02:52]} 13... Bxe2 {[%clk 0:03:02.9]} 14. Qxe2
{[%clk 0:02:53.3]} 14... g5 {[%clk 0:02:56.2]} 15. Bg3 {[%clk 0:02:53.8]} 15...
Qe7 {[%clk 0:02:55.4]} 16. f3 {[%clk 0:02:50]} 16... Ne5 {[%clk 0:02:54.2]} 17.
Bxe5 {[%clk 0:02:41.9]} 17... Qxe5 {[%clk 0:02:54.5]} 18. Nc4 {[%clk 0:02:43.5]}
18... Qe7 {[%clk 0:02:47.6]} 19. f4 {[%clk 0:02:31.2]} 19... gxf4 {[%clk
0:02:46.3]} 20. Rxf4 {[%clk 0:02:31.4]} 20... Nd7 {[%clk 0:02:46.9]} 21. Raf1
{[%clk 0:02:19.1]} 21... Rab8 {[%clk 0:02:29.3]} 22. a5 {[%clk 0:02:17]} 22...
Rbe8 {[%clk 0:02:23]} 23. Qh5 {[%clk 0:02:03.8]} 23... Ne5 {[%clk 0:02:20.8]}
24. Nxe5 {[%clk 0:02:00.6]} 24... Qxe5 {[%clk 0:02:21.3]} 25. Qh4 {[%clk
0:01:51.4]} 25... Qg5 {[%clk 0:02:15.3]} 26. Qh3 {[%clk 0:01:44.3]} 26... Kh8
{[%clk 0:02:05]} 27. Rg4 {[%clk 0:01:43.9]} 27... Qe7 {[%clk 0:02:03]} 28. Rf5
{[%clk 0:01:31.4]} 28... Rg8 {[%clk 0:02:02.3]} 29. Rh5 {[%clk 0:01:18.9]} 29...
Qf6 {[%clk 0:01:59.7]} 30. e5 {[%clk 0:00:44.8]} 30... Rxe5 {[%clk 0:01:55.5]}
31. Ne4 {[%clk 0:00:30.6]} 31... Rxh5 {[%clk 0:01:44.5]} 32. Qxh5 {[%clk
0:00:15.9]} 32... Qd4+ {[%clk 0:01:44.9]} 33. Kf1 {[%clk 0:00:17.5]} 33... f5
{[%clk 0:01:41.3]} 34. Rg6 {[%clk 0:00:15.4]} 34... Qd3+ {[%clk 0:01:30.6]} 35.
Kf2 {[%clk 0:00:02.2]} 35... Bd4+ {[%clk 0:01:30.6]} 36. Ke1 {[%clk 0:00:02.7]}
36... Qxe4+ {[%clk 0:01:30.2]} 37. Kd1 {[%clk 0:00:04.6]} 37... Rxg6 {[%clk
0:01:21.1]} 38. Qxg6 {[%clk 0:00:06.5]} 0-1

[Event "*** Titled Tuesday Blitz"]
[Site "Chess.com"]
[Date "2019.01.01"]
[Round "6"]
[White "Karina_Oparina"]
[Black "aRk_iN"]
[Result "1-0"]
[WhiteElo "2055"]
[BlackElo "2069"]
[TimeControl "180+2"]
[EndTime "14:25:23 PST"]
[Termination "Karina_Oparina won by resignation"]

1. Nf3 {[%clk 0:03:01.2]} 1... d5 {[%clk 0:02:59.4]} 2. g3 {[%clk 0:02:52]} 2...
Nf6 {[%clk 0:02:55.2]} 3. Bg2 {[%clk 0:02:52.5]} 3... c6 {[%clk 0:02:55.1]} 4.
O-O {[%clk 0:02:52.5]} 4... Bf5 {[%clk 0:02:54.2]} 5. c4 {[%clk 0:02:46.5]} 5...
e6 {[%clk 0:02:52.9]} 6. cxd5 {[%clk 0:02:45.6]} 6... cxd5 {[%clk 0:02:48.4]} 7.
d3 {[%clk 0:02:45.9]} 7... Be7 {[%clk 0:02:46.4]} 8. Nc3 {[%clk 0:02:46.3]} 8...
O-O {[%clk 0:02:46.5]} 9. Qb3 {[%clk 0:02:46.4]} 9... Nc6 {[%clk 0:01:57.3]} 10.
Qxb7 {[%clk 0:02:42.4]} 10... Nb4 {[%clk 0:01:45.7]} 11. Bf4 {[%clk 0:02:33.8]}
11... Nh5 {[%clk 0:01:42.6]} 12. Bc7 {[%clk 0:02:13.9]} 12... Qc8 {[%clk
0:01:04.5]} 13. Qxc8 {[%clk 0:02:13.7]} 13... Rfxc8 {[%clk 0:00:42.8]} 14. Bf4
{[%clk 0:02:12.8]} 14... Nxf4 {[%clk 0:00:42.2]} 15. gxf4 {[%clk 0:02:13.3]}
15... Bf6 {[%clk 0:00:34.1]} 16. Rfc1 {[%clk 0:02:01.5]} 16... Rab8 {[%clk
0:00:31.1]} 17. a3 {[%clk 0:01:56.3]} 17... Nc6 {[%clk 0:00:29.8]} 18. Rab1
{[%clk 0:01:44]} 18... Na5 {[%clk 0:00:26.2]} 19. e4 {[%clk 0:01:42.6]} 19...
dxe4 {[%clk 0:00:18.2]} 20. dxe4 {[%clk 0:01:43.2]} 20... Bxc3 {[%clk
0:00:19.2]} 21. exf5 {[%clk 0:01:42.5]} 21... Bf6 {[%clk 0:00:12.9]} 22. fxe6
{[%clk 0:01:42.6]} 22... fxe6 {[%clk 0:00:14.8]} 23. Rxc8+ {[%clk 0:01:37.7]}
23... Rxc8 {[%clk 0:00:15.5]} 24. b4 {[%clk 0:01:36.8]} 24... Nc4 {[%clk
0:00:11.6]} 25. Rc1 {[%clk 0:01:37.1]} 25... Bb2 {[%clk 0:00:12]} 26. Rc2 {[%clk
0:01:35.2]} 26... Bxa3 {[%clk 0:00:13]} 27. b5 {[%clk 0:01:32.3]} 27... Nb6
{[%clk 0:00:12.7]} 28. Rxc8+ {[%clk 0:01:32.3]} 28... Nxc8 {[%clk 0:00:14.6]}
29. Nd4 {[%clk 0:01:32.7]} 29... Kf7 {[%clk 0:00:14]} 30. Bh3 {[%clk 0:01:32.2]}
30... Kf6 {[%clk 0:00:11]} 31. Nxe6 {[%clk 0:01:32.1]} 31... Nd6 {[%clk
0:00:12.5]} 32. Nc7 {[%clk 0:01:20.8]} 32... Bc5 {[%clk 0:00:11.2]} 33. Bf1
{[%clk 0:01:19.4]} 33... Ne4 {[%clk 0:00:12]} 34. Nd5+ {[%clk 0:01:18.5]} 34...
Kf5 {[%clk 0:00:11.9]} 35. Bd3 {[%clk 0:01:14.2]} 35... Bxf2+ {[%clk 0:00:12.8]}
36. Kg2 {[%clk 0:01:14.1]} 36... Bc5 {[%clk 0:00:08.9]} 37. Kf3 {[%clk
0:01:14.4]} 1-0

[Event "*** Titled Tuesday Blitz"]
[Site "Chess.com"]
[Date "2019.01.01"]
[Round "6"]
[White "SARGISMV"]
[Black "iLuusions"]
[Result "0-1"]
[WhiteElo "2411"]
[BlackElo "2571"]
[TimeControl "180+2"]
[EndTime "14:25:30 PST"]
[Termination "iLuusions won by resignation"]

1. Nf3 {[%clk 0:03:01.9]} 1... Nf6 {[%clk 0:03:01.2]} 2. c4 {[%clk 0:03:01.8]}
2... e6 {[%clk 0:03:02.6]} 3. Nc3 {[%clk 0:03:02.9]} 3... d5 {[%clk 0:03:03.7]}
4. d4 {[%clk 0:03:02.3]} 4... Bb4 {[%clk 0:03:04.6]} 5. cxd5 {[%clk 0:03:02.1]}
5... exd5 {[%clk 0:03:05.1]} 6. Bg5 {[%clk 0:03:03]} 6... h6 {[%clk 0:03:05]} 7.
Bh4 {[%clk 0:03:02.4]} 7... O-O {[%clk 0:03:06]} 8. Rc1 {[%clk 0:03:02.7]} 8...
c5 {[%clk 0:03:06.1]} 9. a3 {[%clk 0:03:02.5]} 9... Bxc3+ {[%clk 0:03:01.2]} 10.
Rxc3 {[%clk 0:03:04.4]} 10... c4 {[%clk 0:03:02.7]} 11. Ne5 {[%clk 0:02:53.9]}
11... g5 {[%clk 0:02:54.2]} 12. Bg3 {[%clk 0:02:52.8]} 12... Ne4 {[%clk
0:02:55.6]} 13. h4 {[%clk 0:02:14.4]} 13... Nxc3 {[%clk 0:02:54.6]} 14. bxc3
{[%clk 0:02:16.3]} 14... Kg7 {[%clk 0:02:34.2]} 15. e4 {[%clk 0:01:50.4]} 15...
Rh8 {[%clk 0:01:12.2]} 16. Qh5 {[%clk 0:01:31.4]} 16... Be6 {[%clk 0:01:11.2]}
17. exd5 {[%clk 0:01:13.7]} 17... Bxd5 {[%clk 0:01:11.3]} 18. Bxc4 {[%clk
0:01:13.1]} 18... Bxc4 {[%clk 0:01:03.3]} 19. Nxc4 {[%clk 0:01:15]} 19... Nc6
{[%clk 0:01:04.6]} 20. O-O {[%clk 0:01:03.2]} 20... Qf6 {[%clk 0:00:28.7]} 21.
d5 {[%clk 0:00:58.7]} 21... b5 {[%clk 0:00:25.8]} 22. Nd6 {[%clk 0:00:44.1]}
22... Rad8 {[%clk 0:00:17.1]} 23. dxc6 {[%clk 0:00:32.1]} 23... Rxd6 {[%clk
0:00:17.2]} 24. Bxd6 {[%clk 0:00:31.9]} 24... Qxd6 {[%clk 0:00:19.1]} 25. hxg5
{[%clk 0:00:33.2]} 25... Qxc6 {[%clk 0:00:20.6]} 26. Re1 {[%clk 0:00:19]} 26...
Qxc3 {[%clk 0:00:20.9]} 27. Re3 {[%clk 0:00:19.9]} 27... Qc1+ {[%clk 0:00:21.1]}
28. Kh2 {[%clk 0:00:17.7]} 28... hxg5 {[%clk 0:00:21.8]} 29. Qxh8+ {[%clk
0:00:12.6]} 29... Kxh8 {[%clk 0:00:23.7]} 30. Rh3+ {[%clk 0:00:13.7]} 30... Kg7
{[%clk 0:00:24.7]} 31. Rc3 {[%clk 0:00:15.6]} 31... Qxc3 {[%clk 0:00:25]} 0-1